fUSD/lending_fUSD_20260123
["ID","MTS","AMOUNT","RATE_DAILY","PERIOD"]
[403117950,1769175032196,-527.0,0.00017246,2]
[403117951,1769175032206,-2600.0,0.000173,6]
[403117952,1769175032215,-356.21502145,0.00017377,2]
[403117953,1769175032224,-527.0,0.00017386,2]
[403117954,1769175032234,-3200.0,0.000174,6]
[403117955,1769175032243,-1424.3517512,0.00017482,2]
[403117956,1769175032252,-600.0,0.000175,6]
[403117957,1769175032262,-200.0,0.00017583,2]
[403117958,1769175032271,-600.0,0.000176,6]
[403117959,1769175032281,-1101.0,0.00017601,2]
[403117960,1769175032290,-527.0,0.00017613,2]
[403117961,1769175032299,-2526.576,0.00017624,2]
[403117962,1769175032309,-1332.0,0.00017624,2]
[403117963,1769175032318,-832.15096179,0.0001764,2]
[403117964,1769175032327,-400.0,0.00017645,2]
[403117965,1769175032336,-2631.4,0.00017655,2]
[403117966,1769175032346,-2631.4,0.00017686,2]
[403117967,1769175032355,-527.0,0.00017694,2]
[403117968,1769175032365,-150.0,0.00017699,2]
[403117969,1769175032374,-150.0,0.00017699,2]
[403117970,1769175032384,-150.0,0.00017699,2]
[403117971,1769175032396,-150.0,0.00017699,2]
[403117972,1769175032405,-150.0,0.00017699,2]
[403117973,1769175032414,-150.0,0.00017699,2]
[403117974,1769175032423,-150.0,0.00017699,2]
[403117975,1769175032432,-600.0,0.000177,6]
[403117976,1769175032442,-333.0,0.00017709,2]
[403117977,1769175032451,-200.0,0.00017711,2]
[403117978,1769175032460,-2631.4,0.00017718,2]
[403117979,1769175032470,-2631.4,0.00017749,2]
[403117980,1769175032480,-150.0,0.00017754,2]
[403117981,1769175032490,-150.0,0.00017754,2]
[403117982,1769175032499,-150.0,0.00017754,2]
[403117983,1769175032508,-150.0,0.00017754,2]
[403117984,1769175032516,-150.0,0.00017754,2]
[403117985,1769175032525,-2631.4,0.0001778,2]
[403117986,1769175032535,-600.0,0.000178,6]
[403117987,1769175032544,-270.0,0.00017809,2]
[403117988,1769175032554,-150.0,0.00017809,2]
[403117989,1769175032563,-150.0,0.00017809,2]
[403117990,1769175032571,-2631.4,0.00017812,2]
[403117991,1769175032581,-582.14969,0.0001782,2]
[403117992,1769175032590,-582.14969,0.0001782,2]
[403117993,1769175032600,-2631.4,0.00017843,2]
[403117994,1769175032608,-200.0,0.00017856,2]
[403117995,1769175032618,-527.0,0.00017861,2]
[403117996,1769175032627,-150.0,0.00017863,2]
[403117997,1769175032636,-150.0,0.00017863,2]
[403117998,1769175032645,-308.866,0.00017873,2]
[403117999,1769175032653,-500.0,0.00017873,2]
[403118000,1769175032662,-2631.4,0.00017875,2]
[403118001,1769175032671,-405.6,0.00017876,2]
[403118002,1769175032680,-1059.0,0.000179,6]
[403118003,1769175032689,-356.21502145,0.000179,2]
[403118004,1769175032698,-1424.3517512,0.000179,2]
[403118005,1769175032716,-1605.0,0.000179,2]
[403118006,1769175032726,-2631.4,0.00017906,2]
[403118007,1769175032735,-150.0,0.00017918,2]
[403118008,1769175032744,-150.0,0.00017918,2]
[403118009,1769175032753,-168.0,0.0001792,2]
[403118010,1769175032763,-2631.4,0.00017937,2]
[403118011,1769175032772,-2631.4,0.00017969,2]
[403118012,1769175032781,-250.0,0.00017973,2]
[403118013,1769175032791,-250.0,0.00017973,2]
[403118014,1769175032800,-500.0,0.00017973,2]
[403118015,1769175032809,-150.0,0.00017973,2]
[403118016,1769175032818,-1053.82271057,0.00017998,3]
[403118017,1769175032827,-300.0,0.00017999,2]
[403118018,1769175032836,-666.0,0.00017999,2]
[403118019,1769175032846,-300.0,0.00018,2]
[403118020,1769175032856,-804569.49858265,0.00018,2]
[403118025,1769175037487,-2441.0,0.00017624,2]
[403118026,1769175037497,-642.59289143,0.00018,2]
[403118054,1769175039564,-986.2616499,0.00018,2]
[403118055,1769175039576,-1008.23501072,0.00018,2]
[403118056,1769175039586,-372.34049029,0.00018,2]
[403118057,1769175039612,-381624.51156578,0.00018,2]
[403118058,1769175039622,-2987472.4207728,0.00018,2]
[403118059,1769175039632,-1910.68826885,0.00018,2]
[403118060,1769175039642,-11449.11453351,0.00018,2]
[403118061,1769175039653,-899979.48466904,0.00018,2]
[403118062,1769175039662,-522.99106436,0.00018,2]
[403118063,1769175039672,-150.0,0.00018,2]
[403118064,1769175039682,-2536.75174456,0.00018,2]
[403118065,1769175039692,-150.0,0.00018,2]
[403118066,1769175039702,-4384.97455068,0.00018,2]
[403118067,1769175039713,-150.0,0.00018,2]
[403118068,1769175039723,-3181.8052028,0.00018,2]
[403118069,1769175039733,-2254234.42664704,0.00018,2]
[403118138,1769175043037,-265.93643126,0.00017099,2]
[403118139,1769175043047,-6615.70634932,0.000179,2]
[403118140,1769175043056,-31121.57162375,0.00018,2]
[403118155,1769175045542,-12439.78683181,0.00018,2]
[403118157,1769175048325,10000.01,0.00014239,2]
[403118158,1769175048349,10000.01,0.00014239,2]
[403118159,1769175048377,546.0955,0.00014239,2]
[403118160,1769175064240,10000.01,0.00014239,2]
[403118161,1769175064268,10000.01,0.00014239,2]
[403118162,1769175064295,10000.01,0.00014239,2]
[403118163,1769175064323,10000.01,0.00014239,2]
[403118164,1769175064351,10000.01,0.00014239,2]
[403118165,1769175064379,10000.01,0.00014239,2]
[403118166,1769175064409,10000.01,0.00014239,2]
[403118174,1769175087630,-215.015671,0.00014239,2]
[403118175,1769175087871,-10000.01,0.00014239,2]
[403118176,1769175092755,167.097,0.00013954,2]
[403118177,1769175092821,1508.109,0.00013954,2]
[403118178,1769175092940,277.65866853,0.00014238,2]
[403118179,1769175140644,8047.14533147,0.00014229,2]
[403118180,1769175140668,4583.52910859,0.00014229,2]
[403118181,1769175158288,782.66665622,0.00014139,2]
[403118182,1769175181273,300.0,0.00014238,2]
[403118183,1769175182946,300.0,0.00014238,2]
[403118184,1769175183680,150.0,0.00014238,2]
[403118185,1769175183766,300.0,0.00014238,2]
[403118186,1769175185531,329.47608048,0.00014238,2]
[403118187,1769175200119,640.0,0.00014238,2]
[403118188,1769175201497,500.0,0.00014238,2]
[403118189,1769175201544,500.0,0.00014238,2]
[403118190,1769175201648,500.0,0.00014238,2]
[403118191,1769175201704,500.0,0.00014238,2]
[403118192,1769175201762,274.98113095,0.00014238,2]
[403118196,1769175280858,339.35702376,0.00014238,2]
[403118197,1769175280883,160.64297624,0.00014238,2]
[403118198,1769175280924,257.69172315,0.00014238,2]
[403118199,1769175281537,6524.51,0.00013772,2]
[403118200,1769175287205,222.04101513,0.00014238,2]
[403118202,1769175302080,1200.0,0.00014238,2]
[403118204,1769175323167,1348.68204638,0.00014139,2]
[403118209,1769175362495,150.0,0.00014238,2]
[403118213,1769175396544,136.4422391,0.00014238,2]
[403118214,1769175396570,5201.8519758,0.00014238,2]
[403118216,1769175439962,684.83332421,0.00014139,2]
[403118218,1769175486739,1394.23392718,0.00014139,2]
[403118219,1769175541995,150.0,0.00014238,2]
[403118220,1769175578502,212.21862787,0.00014226,2]
[403118221,1769175605602,879.89,0.00014229,2]
[403118222,1769175605809,879.89,0.00014229,2]
[403118224,1769175691057,500.0,0.00014238,2]
[403118225,1769175692768,97.09214494,0.00013954,2]
[403118226,1769175692794,70.00485506,0.00013954,2]
[403118227,1769175692966,1206.487,0.00013954,2]
[403118235,1769175720649,599.22915871,0.00014139,2]
[403118236,1769175721894,150.0,0.00014238,2]
[403118241,1769175754413,3338.3648,0.00014139,2]
[403118242,1769175841309,300.0,0.00014238,2]
[403118243,1769175901282,1200.0,0.00014238,2]
[403118244,1769175910743,354.18218388,0.00014,2]
[403118245,1769175999393,1338.32865268,0.00014139,2]
[403118246,1769176002133,524.32551388,0.00014139,2]
[403118247,1769176040255,500.0,0.00014238,2]
[403118249,1769176082054,150.0,0.00014238,2]
[403118250,1769176105896,269.08783579,0.00014139,2]
[403118251,1769176105924,10000.01,0.00014139,2]
[403118252,1769176105956,10000.01,0.00014139,2]
[403118253,1769176105983,10000.01,0.00014139,2]
[403118254,1769176106012,10000.01,0.00014139,2]
[403118255,1769176106039,10000.01,0.00014139,2]
[403118256,1769176106065,10000.01,0.00014139,2]
[403118257,1769176106090,10000.01,0.00014139,2]
[403118258,1769176106116,10000.01,0.00014139,2]
[403118259,1769176106141,10000.01,0.00014139,2]
[403118260,1769176122602,-530.38420621,0.00014138,2]
[403118261,1769176122631,-230.63325634,0.00014138,2]
[403118262,1769176122660,-253.22658769,0.00014138,2]
[403118263,1769176133196,652.698843,0.00014067,2]
[403118264,1769176141222,300.0,0.00014138,2]
[403118265,1769176183282,453.98132864,0.00014138,2]
[403118266,1769176183340,500.0,0.00014138,2]
[403118267,1769176183378,500.0,0.00014138,2]
[403118268,1769176183425,500.0,0.00014138,2]
[403118269,1769176183477,500.0,0.00014138,2]
[403118270,1769176183521,500.0,0.00014138,2]
[403118271,1769176183571,500.0,0.00014138,2]
[403118272,1769176183620,500.0,0.00014138,2]
[403118273,1769176183661,500.0,0.00014138,2]
[403118274,1769176183701,500.0,0.00014138,2]
[403118275,1769176183747,500.0,0.00014138,2]
[403118276,1769176183789,500.0,0.00014138,2]
[403118277,1769176183834,500.0,0.00014138,2]
[403118278,1769176183880,500.0,0.00014138,2]
[403118279,1769176183924,64.84172788,0.00014138,2]
[403118280,1769176183950,435.15827212,0.00014138,2]
[403118281,1769176183989,500.0,0.00014138,2]
[403118282,1769176184031,500.0,0.00014138,2]
[403118283,1769176184074,500.0,0.00014138,2]
[403118284,1769176184112,484.04153523,0.00014138,2]
[403118285,1769176184165,500.0,0.00014138,2]
[403118286,1769176184204,500.0,0.00014138,2]
[403118287,1769176184246,500.0,0.00014138,2]
[403118288,1769176193302,197.29391488,0.00014138,2]
[403118289,1769176201731,1200.0,0.00014138,2]
[403118293,1769176231447,-20364.908695,0.00014139,2]
[403118294,1769176231501,-8810.57129373,0.00014139,2]
[403118295,1769176231513,-5834.37069016,0.00014139,2]
[403118296,1769176231524,-400.99999999,0.00014139,2]
[403118297,1769176231535,-3025.76218427,0.00014139,2]
[403118298,1769176231556,-754.66632813,0.00014139,2]
[403118299,1769176231568,-932.31905122,0.00014139,2]
[403118300,1769176231583,-85067.83820251,0.00014139,2]
[403118301,1769176231722,-405.05,0.00014139,2]
[403118304,1769176231734,-1727.40362359,0.00014139,2]
[403118421,1769176237661,-710.55806047,0.00014139,2]
[403118422,1769176237673,-289.31337253,0.00014139,2]
[403118423,1769176237684,-595.27616845,0.00014139,2]
[403118424,1769176237778,-615.21547425,0.00014139,2]
[403118427,1769176239623,-458.87313864,0.00014139,2]
[403118429,1769176239679,-252.39744992,0.00014139,2]
[403118430,1769176239691,-329.00491005,0.00014139,2]
[403118431,1769176239739,-779156.2935213,0.00014139,2]
[403118432,1769176239748,-195.0,0.00014164,2]
[403118433,1769176239758,-250.0,0.00014189,2]
[403118434,1769176239767,-195.0,0.00014205,2]
[403118435,1769176239776,-250.0,0.00014219,2]
[403118436,1769176239785,-500.0,0.00014238,2]
[403118437,1769176239794,-500.0,0.00014238,2]
[403118438,1769176239804,-506.26166324,0.00014238,2]
[403118439,1769176239818,-1000.0,0.00014239,2]
[403118440,1769176239827,-500.0,0.00014338,2]
[403118441,1769176239841,-500.0,0.00014338,2]
[403118442,1769176239851,-500.0,0.00014338,2]
[403118443,1769176239860,-500.0,0.00014338,2]
[403118444,1769176239870,-500.0,0.00014338,2]
[403118445,1769176239881,-500.0,0.00014338,2]
[403118446,1769176239890,-1338.32865259,0.00014557,2]
[403118447,1769176239900,-1338.32865259,0.00014975,2]
[403118448,1769176239911,-672.0,0.00015337,2]
[403118449,1769176239921,-169.0,0.00015362,2]
[403118450,1769176239931,-1338.32865259,0.00015393,2]
[403118451,1769176239940,-904.0,0.00015431,2]
[403118452,1769176239949,-1265.0,0.00015496,2]
[403118453,1769176239959,-1265.0,0.00015496,2]
[403118454,1769176239968,-1265.0,0.00015496,2]
[403118455,1769176239977,-1265.0,0.00015496,2]
[403118456,1769176239986,-507.0,0.00015551,2]
[403118457,1769176239995,-250.0,0.00015552,2]
[403118458,1769176240004,-195.0,0.00015552,2]
[403118459,1769176240014,-150.0,0.00015552,2]
[403118460,1769176240023,-240.0,0.00015601,2]
[403118461,1769176240032,-1265.0,0.00015659,2]
[403118462,1769176240041,-300.0,0.00015662,2]
[403118463,1769176240051,-195.0,0.00015662,2]
[403118464,1769176240061,-2500.0,0.00015662,2]
[403118465,1769176240071,-600.0,0.00015662,2]
[403118466,1769176240080,-500.0,0.00015778,2]
[403118467,1769176240090,-1338.32865259,0.00015811,2]
[403118468,1769176240102,-221.37,0.00015959,2]
[403118469,1769176240111,-166.66,0.00016028,2]
[403118470,1769176240120,-1338.32865259,0.00016228,2]
[403118471,1769176240132,-1000.0,0.00016243,2]
[403118472,1769176240141,-200.0,0.00016243,2]
[403118475,1769176240150,-258.24,0.00016246,2]
[403118476,1769176240401,-500.0,0.00016356,2]
[403118477,1769176240410,-500.0,0.00016356,2]
[403118478,1769176240419,-166.66,0.00016365,2]
[403118479,1769176240428,-152.85,0.00016418,2]
[403118480,1769176240438,-351.96221369,0.00016438,2]
[403118481,1769176240447,-500.0,0.00016438,2]
[403118482,1769176240456,-500.0,0.00016438,2]
[403118483,1769176240466,-500.0,0.00016438,2]
[403118484,1769176240476,-500.0,0.00016438,2]
[403118485,1769176240487,-500.0,0.00016438,2]
[403118486,1769176240496,-522.5604392,0.00016438,2]
[403118487,1769176240506,-153.30878244,0.00016438,2]
[403118488,1769176240515,-158.9,0.00016518,2]
[403118489,1769176240524,-4472.9574,0.00016603,2]
[403118490,1769176240533,-708.7,0.00016635,2]
[403118491,1769176240543,-396.01323279,0.00016635,2]
[403118492,1769176240552,-500.0,0.00016635,2]
[403118493,1769176240561,-500.0,0.00016635,2]
[403118494,1769176240570,-623.96629697,0.00016635,2]
[403118495,1769176240579,-151.0,0.00016635,2]
[403118496,1769176240588,-151.0,0.00016635,2]
[403118497,1769176240597,-151.0,0.00016635,2]
[403118498,1769176240606,-151.0,0.00016635,2]
[403118499,1769176240616,-151.0,0.00016635,2]
[403118500,1769176240625,-151.0,0.00016635,2]
[403118501,1769176240634,-151.0,0.00016635,2]
[403118502,1769176240644,-151.0,0.00016635,2]
[403118503,1769176240653,-151.0,0.00016635,2]
[403118504,1769176240662,-151.0,0.00016635,2]
[403118505,1769176240671,-151.0,0.00016635,2]
[403118506,1769176240680,-1338.32865259,0.00016646,2]
[403118507,1769176240689,-166.66,0.00016703,2]
[403118508,1769176240699,-708.7,0.00016909,2]
[403118509,1769176240708,-166.66,0.0001704,2]
[403118510,1769176240718,-1338.32865259,0.00017064,2]
[403118511,1769176240727,-708.7,0.00017183,2]
[403118512,1769176240737,-157.44557043,0.00017183,2]
[403118513,1769176240747,-166.66,0.00017378,2]
[403118514,1769176240756,-158.9,0.00017427,2]
[403118515,1769176240766,-708.7,0.00017457,2]
[403118516,1769176240775,-1338.32865259,0.00017482,2]
[403118517,1769176240784,-178.46,0.00017612,2]
[403118518,1769176240793,-416.0754809,0.0001764,2]
[403118519,1769176240803,-219.3,0.0001765,2]
[403118520,1769176240812,-219.3,0.00017682,2]
[403118521,1769176240821,-219.3,0.00017714,2]
[403118522,1769176240831,-166.66,0.00017715,2]
[403118523,1769176240843,-150.99,0.00017728,2]
[403118524,1769176240852,-4350.13,0.00017728,2]
[403118525,1769176240861,-708.7,0.00017731,2]
[403118526,1769176240871,-219.3,0.00017745,2]
[403118527,1769176240881,-219.3,0.00017777,2]
[403118528,1769176240891,-219.3,0.00017809,2]
[403118529,1769176240900,-225.09248,0.0001782,2]
[403118530,1769176240912,-225.09248,0.0001782,2]
[403118531,1769176240921,-500.0,0.00017836,2]
[403118532,1769176240930,-219.3,0.00017841,2]
[403118533,1769176240939,-173.60125608,0.00017873,2]
[403118534,1769176240948,-170.15034762,0.00017873,2]
[403118535,1769176240957,-503.12872838,0.00017873,2]
[403118536,1769176240967,-500.98829867,0.00017873,2]
[403118537,1769176240976,-224.03413268,0.00017873,2]
[403118538,1769176240986,-500.82647846,0.00017873,2]
[403118539,1769176240997,-264.15997933,0.00017873,2]
[403118540,1769176241007,-501.14833448,0.00017873,2]
[403118541,1769176241016,-500.0,0.00017873,2]
[403118542,1769176241026,-500.0,0.00017873,2]
[403118543,1769176241036,-225.19260469,0.00017873,2]
[403118544,1769176241045,-501.12504577,0.00017873,2]
[403118545,1769176241055,-166.2783707,0.00017873,2]
[403118546,1769176241064,-177.49639473,0.00017873,2]
[403118547,1769176241074,-500.0,0.00017873,2]
[403118548,1769176241082,-164.48740181,0.00017873,2]
[403118549,1769176241092,-500.95304177,0.00017873,2]
[403118550,1769176241101,-500.90406579,0.00017873,2]
[403118551,1769176241110,-500.0,0.00017873,2]
[403118552,1769176241119,-219.3,0.00017873,2]
[403118553,1769176241128,-1338.32865259,0.000179,2]
[403118554,1769176241138,-500.0,0.000179,2]
[403118555,1769176241148,-500.0,0.000179,2]
[403118556,1769176241157,-500.0,0.000179,2]
[403118557,1769176241167,-500.0,0.000179,2]
[403118558,1769176241176,-500.0,0.000179,2]
[403118559,1769176241185,-500.0,0.000179,2]
[403118560,1769176241194,-500.0,0.000179,2]
[403118561,1769176241204,-500.0,0.000179,2]
[403118562,1769176241213,-500.0,0.000179,2]
[403118563,1769176241222,-500.0,0.000179,2]
[403118564,1769176241231,-500.0,0.000179,2]
[403118565,1769176241240,-500.0,0.000179,2]
[403118566,1769176241250,-500.0,0.000179,2]
[403118567,1769176241260,-500.0,0.000179,2]
[403118568,1769176241269,-500.0,0.000179,2]
[403118569,1769176241278,-500.0,0.000179,2]
[403118570,1769176241287,-500.0,0.000179,2]
[403118571,1769176241297,-500.0,0.000179,2]
[403118572,1769176241306,-500.0,0.000179,2]
[403118573,1769176241316,-500.0,0.000179,2]
[403118574,1769176241325,-500.0,0.000179,2]
[403118575,1769176241335,-500.0,0.000179,2]
[403118576,1769176241344,-500.0,0.000179,2]
[403118577,1769176241354,-219.3,0.00017905,2]
[403118578,1769176241363,-219.3,0.00017936,2]
[403118579,1769176241372,-219.3,0.00017968,2]
[403118580,1769176241382,-150.0,0.00017973,2]
[403118581,1769176241392,-150.0,0.00017973,2]
[403118582,1769176241401,-1404.2882587,0.00017994,2]
[403118583,1769176241410,-300.0,0.00017999,2]
[403118584,1769176241419,-500.0,0.00017999,2]
[403118585,1769176241428,-155.0,0.00017999,2]
[403118586,1769176241438,-1284.0,0.00018,2]
[403118587,1769176241447,-5686133.81884549,0.00018,2]
[403118588,1769176241514,-6426.99855979,0.00018,2]
[403118606,1769176242707,-1001.403706,0.00017617,2]
[403118607,1769176242871,-998.596294,0.00017617,2]
[403118608,1769176242882,-1000.0,0.00017617,2]
[403118609,1769176242891,-1000.0,0.00017617,2]
[403118610,1769176242900,-240.861,0.00017617,2]
[403118611,1769176242911,-525097.58881391,0.00018,2]
[403118613,1769176243381,-41.81430209,0.00018,2]
[403118614,1769176243396,-1057.76477946,0.00018,2]
[403118615,1769176245683,-1890.52788908,0.00018,2]
[403118616,1769176245694,-720.1557008,0.00018,2]
[403118617,1769176245851,-1159.95,0.00018,2]
[403118618,1769176245911,-1872.07878907,0.00018,2]
[403118727,1769176276596,500.0,0.00014238,2]
[403118728,1769176280861,500.0,0.00014338,2]
[403118729,1769176281085,500.0,0.00014338,2]
[403118731,1769176299895,500.0,0.00014238,2]
[403118732,1769176300169,500.0,0.00014238,2]
[403118733,1769176302657,500.0,0.00014138,2]
[403118734,1769176302774,500.00000001,0.00014138,2]
[403118736,1769176309913,544.59749833,0.00014338,2]
[403118737,1769176320844,500.0,0.00014238,2]
[403118738,1769176321074,500.0,0.00014238,2]
[403118739,1769176347465,500.0,0.00014138,2]
[403118740,1769176347798,500.0,0.00014138,2]
[403118741,1769176380724,500.0,0.00014238,2]
[403118742,1769176386473,8500.01,0.00014039,2]
[403118743,1769176386500,10000.01,0.00014039,2]
[403118744,1769176386526,10000.01,0.00014039,2]
[403118745,1769176386552,10000.01,0.00014039,2]
[403118746,1769176386579,10000.01,0.00014039,2]
[403118747,1769176386606,10000.01,0.00014039,2]
[403118748,1769176386636,10000.01,0.00014039,2]
[403118749,1769176386662,10000.01,0.00014039,2]
[403118750,1769176386693,10000.01,0.00014039,2]
[403118751,1769176386720,10000.01,0.00014039,2]
[403118759,1769176442544,150.0,0.00014038,2]
[403118760,1769176443360,300.0,0.00014038,2]
[403118761,1769176465730,1569.74577621,0.00013939,2]
[403118762,1769176468623,10000.0,0.000226,120]
[403118763,1769176479078,10000.0,0.000226,120]
[403118764,1769176490050,161.44327943,0.00014038,2]
[403118765,1769176490100,500.0,0.00014038,2]
[403118766,1769176490245,177.25861138,0.00014038,2]
[403118767,1769176490458,327.16161481,0.00014038,2]
[403118768,1769176493860,10000.0,0.000226,120]
[403118769,1769176503149,10000.0,0.000226,120]
[403118770,1769176505823,1065.71481814,0.00013939,2]
[403118771,1769176514278,10000.0,0.000226,120]
[403118772,1769176525308,10000.0,0.000226,120]
[403118773,1769176532491,10000.0,0.000226,120]
[403118774,1769176541057,10000.0,0.000226,120]
[403118775,1769176548237,10000.0,0.000226,120]
[403118776,1769176555513,10000.0,0.000226,120]
[403118777,1769176563595,10000.0,0.000226,120]
[403118778,1769176570442,10000.0,0.000226,120]
[403118779,1769176578575,10000.0,0.000226,120]
[403118780,1769176585542,10000.0,0.000226,120]
[403118781,1769176593220,10000.0,0.000226,120]
[403118782,1769176601968,10000.0,0.000226,120]
[403118783,1769176611420,10000.0,0.000226,120]
[403118784,1769176618599,10000.0,0.000226,120]
[403118787,1769176626412,10000.0,0.000226,120]
[403118788,1769176630746,180.10699114,0.00014038,2]
[403118789,1769176633536,10000.0,0.000226,120]
[403118790,1769176640824,10000.0,0.000226,120]
[403118792,1769176647912,10000.0,0.000226,120]
[403118793,1769176660701,159.3956026,0.00013939,2]
[403118794,1769176670137,10000.0,0.000226,120]
[403118795,1769176678746,10000.0,0.000226,120]
[403118796,1769176687215,10000.0,0.000226,120]
[403118797,1769176694485,10000.0,0.000226,120]
[403118798,1769176702679,10000.0,0.000226,120]
[403118799,1769176709946,10000.0,0.000226,120]
[403118800,1769176716847,10000.0,0.000226,120]
[403118801,1769176723345,10000.0,0.000226,120]
[403118802,1769176734285,10000.0,0.000226,120]
[403118803,1769176742036,10000.0,0.000226,120]
[403118804,1769176749022,10000.0,0.000226,120]
[403118805,1769176756649,10000.0,0.000226,120]
[403118806,1769176770170,10000.0,0.000226,120]
[403118808,1769176787721,932.50046589,0.00013939,2]
[403118809,1769176796888,2850.0,0.000226,120]
[403118813,1769176850102,151.0,0.00014038,2]
[403118814,1769176850146,289.5121204,0.00014038,2]
[403118819,1769176892916,1168.921,0.00013758,2]
[403118820,1769176893003,175.037,0.00013758,2]
[403118823,1769176902963,500.0,0.00014038,2]
[403118825,1769176926908,500.0,0.0001403,2]
[403118826,1769176932115,159.73187614,0.0001403,2]
[403118827,1769176933887,151.0,0.0001403,2]
[403118828,1769176934520,151.0,0.0001403,2]
[403118829,1769176935118,151.0,0.0001403,2]
[403118830,1769176936366,151.0,0.0001403,2]
[403118831,1769176936968,151.0,0.0001403,2]
[403118832,1769176949228,500.0,0.0001403,2]
[403118833,1769176949841,500.0,0.0001403,2]
[403118834,1769176950457,500.0,0.0001403,2]
[403118835,1769176951066,500.0,0.0001403,2]
[403118836,1769176951714,500.0,0.0001403,2]
[403118837,1769176952314,500.0,0.0001403,2]
[403118838,1769176952948,500.0,0.0001403,2]
[403118839,1769176953585,500.0,0.0001403,2]
[403118840,1769176954423,183.10392533,0.0001403,2]
[403118841,1769176976148,845.7010185,0.00013939,2]
[403118842,1769176976173,567.07018008,0.00013939,2]
[403118843,1769177118488,815.93790768,0.00013939,2]
[403118844,1769177119292,512.44990602,0.00014038,2]
[403118845,1769177125818,1000.0,0.00014,2]
[403118847,1769177141686,1000.0,0.00018,30]
[403118848,1769177148840,151.0,0.00014038,2]
[403118849,1769177150604,212.85475453,0.00014038,2]
[403118850,1769177162334,150.0,0.00014038,2]
[403118851,1769177162943,1000.0,0.000135,2]
[403118852,1769177266625,500.0,0.00014038,2]
[403118853,1769177342354,150.0,0.00014038,2]
[403118854,1769177359147,-5325.805492,0.00014039,2]
[403118855,1769177393539,500.0,0.00014038,2]
[403118857,1769177414722,713.94566922,0.00013939,2]
[403118858,1769177419986,3726.75158247,0.00013939,2]
[403118859,1769177420016,10000.01,0.00013939,2]
[403118860,1769177420046,10000.01,0.00013939,2]
[403118861,1769177420075,10000.01,0.00013939,2]
[403118862,1769177420104,10000.01,0.00013939,2]
[403118863,1769177420133,10000.01,0.00013939,2]
[403118864,1769177420162,10000.01,0.00013939,2]
[403118865,1769177420190,10000.01,0.00013939,2]
[403118866,1769177420220,10000.01,0.00013939,2]
[403118867,1769177420248,10000.01,0.00013939,2]
[403118874,1769177431663,-753.54269787,0.00013939,2]
[403118875,1769177431674,-1476.03106863,0.00013939,2]
[403118876,1769177431776,-110765.04807869,0.00013939,2]
[403118877,1769177431788,-15166.68544083,0.00013939,2]
[403118878,1769177431799,-14786.46851015,0.00013939,2]
[403118879,1769177431810,-29552.47056811,0.00013939,2]
[403118880,1769177431821,-1027.11678612,0.00013939,2]